Cogmind - Beta 16 @@@ ROGUE MODE // 2026.01.24 @ 19:48:01 Player: luckinvolved Result: Destroyed by G-47 Trooper with Particle Gun Performance ------------- Evolutions (0) 0 Regions Visited (2) 400 Robots Destroyed (33) 165 Value Destroyed (846) 846 Prototype IDs (1) 20 Alien Tech Used (0) 0 Bonus (0) 0 TOTAL SCORE: 1431 Bonus ------- None Cogmind --------- Core Integrity 0/250 Matter 277/300 Energy 111/125 System Corruption 0% Temperature Cool (34) Movement Treading (240) Ox1 Location -10/Mines Parts ------- > --- POWER (1) -------- Light Ion Engine > --- PROPULSION (2) --- Light Treads Light Treads > --- UTILITY (2) ------ High-capacity Storage Unit Light Armor Plating > --- WEAPON (2) ------- Beam Rifle Assault Rifle > --- INVENTORY (20) --- Light Treads Compact Wheel Heat Sink Heat Sink Heat Sink Heat Sink Improved Heat Sink Structural Scanner Seismic Detector Targeting Computer ECM Suite Core Shielding EM Pulse Gun Peak State ------------ > --- POWER ------------ Ion Engine > --- PROPULSION ------- Light Treads Light Treads > --- UTILITY ---------- Improved Heat Sink High-capacity Storage Unit > --- WEAPON ----------- Beam Rifle Beam Rifle > --- INVENTORY -------- Ion Engine Light Ion Engine Compact Wheel Heat Sink Heat Sink Seismic Detector Core Shielding Light Armor Plating EM Pulse Gun Beam Rifle Beam Rifle Assault Rifle [Rating: 12] Favorites ----------- Power Ion Engine Engine Ion Engine Propulsion Light Treads Treads Light Treads Wheel Compact Wheel Flight Unit Improved Flight Unit Utility High-capacity Storage Unit Device Improved Heat Sink Storage High-capacity Storage Unit Protection Light Armor Plating Weapon Beam Rifle Energy Gun Beam Rifle Ballistic Gun Assault Rifle Build | -11 -10 -10 ------- Run | Yrd Mat Min Slots Evolved . | . . . Power . | . . . Propulsion . | . . . Utility . | . . . Weapon . | . . . Parts Attached 25 | 7 10 8 Power 4 | 1 1 2 Engine 4 | 1 1 2 Core . | . . . Reactor . | . . . Propulsion 7 | 2 4 1 Treads 5 | 2 2 1 Leg . | . . . Wheel 1 | . 1 . Hover . | . . . Flight 1 | . 1 . Utility 8 | 2 3 3 Device 5 | 1 2 2 Storage 2 | 1 1 . Processor . | . . . Hackware . | . . . Protection 1 | . . 1 Artifact . | . . . Weapon 6 | 2 2 2 Energy Gun 5 | 1 2 2 Energy Cannon . | . . . Ballistic Gun 1 | 1 . . Ballistic Cannon . | . . . Launcher . | . . . Special Weapon . | . . . Impact Weapon . | . . . Slashing Weapon . | . . . Piercing Weapon . | . . . Special Melee Weapon . | . . . Unidentified Prototypes 1 | . 1 . Parts Lost 10 | . 3 7 Power 3 | . 1 2 Propulsion 2 | . 1 1 Utility 2 | . 1 1 Weapon 3 | . . 3 Highest Loss Streak 6 | . 1 6 To Critical Strikes . | . . . Average Backups 13 | 3 13 15 Power 1 | . 1 . Propulsion 2 | 1 2 2 Utility 6 | . 5 9 Weapon 3 | . 3 3 Tool/Special . | . . . Unused Backups 10 | . 2 8 Power . | . . . Propulsion 2 | . 2 . Utility 7 | . . 7 Weapon 1 | . . 1 Tool/Special . | . . . Average Slot Usage (%) 98 | . 98 97 Engine 13 | . 13 12 Treads 27 | . 27 27 Device 13 | . 13 14 Storage 14 | . 14 14 Energy Gun 24 | . 25 23 Ballistic Gun 2 | . 2 4 Peak Build Rating 12 | 7 12 12 Average Rating 10 | 5 10 11 On Entrance 5 | . 7 10 Avg Prop Armor Cover (%) . | . . . Naked Turns . | . . . Heaviest Build 52 | 14 52 52 Greatest Support 40 | 40 40 40 Greatest Overweight (x) 2 | . 2 1 Average Overweight (x) . | . . 1 Largest Inventory Capacity 20 | 8 20 20 Average Capacity 18 | 7 18 20 Most Carried 17 | 5 17 17 Average Carried 13 | 3 13 15 Final Capacity 20 | 8 20 20 Final Carried 17 | 5 17 13 Class Distribution -------------------- 59% | Mutant 40% | Scavenger-Mutant Dominant Class ---------------- Mutant | -10/Materials Scavenger-Mutant | -10/Mines Resources | -11 -10 -10 ----------- Run | Yrd Mat Min Matter Collected 623 | 276 275 72 Remotely . | . . . Salvage Created 1357 | 118 1080 159 Parts 60 | 6 48 6 Haulers Intercepted 2 | . 2 . Recyclers Shooed 3 | . 3 . Parts Field Recycled . | . . . Retrieved Matter . | . . . Parts Self-Destructed . | . . . Prevented . | . . . Parts Restored . | . . . Kills | -11 -10 -10 ------- Run | Yrd Mat Min Combat Hostiles Destroyed 22 | . 19 3 Guns 21 | . 18 3 Classes Destroyed 6 | 2 4 . Worker 2 | . 1 1 Tunneler 1 | 1 . . Hauler 2 | . 2 . Recycler 3 | 1 2 . Watcher 3 | . 3 . Grunt 21 | . 19 2 Best Kill Streak 5 | 1 5 2 Combat Bots Only 4 | . 4 2 Max Kills in Single Turn 2 | 1 2 1 Gunslinging 1 | . 1 . Exploded . | . . . Melee . | . . . Uniques/NPCs Destroyed 1 | . . 1 YI-UF0 (-10/Mines) Combat | -11 -10 -10 -------- Run | Yrd Mat Min Hostile Shots Fired 99 | . 72 27 Missed 23 | . 17 6 Hits 76 | . 55 21 Projectile 76 | . 55 21 AOE 16 | . . 16 Damage Taken 1296 | . 647 649 Core 256 | . 130 126 Absorbed by Shields . | . . . Core Remaining (%) 100 | 100 . . Volleys Fired 90 | 2 74 14 Largest 2 | 2 2 2 Hottest 112 | 60 112 112 Shots Fired 162 | 4 133 25 Gun 162 | 4 133 25 Cannon . | . . . Launcher . | . . . Special . | . . . Kinetic 17 | 2 10 5 Thermal 145 | 2 123 20 Explosive . | . . . Electromagnetic . | . . . Robot Hit Streak 10 | 3 10 8 Robot Miss Streak 3 | . 3 2 Penetration Max . | . . . Secondary Targets 1 | . 1 . Max Gunslinging Chain 1 | . 1 . Shots Hit Robots 113 | 3 92 18 Core Hits 58 | 3 45 10 Critical Kills . | . . . Critical Parts Destroyed . | . . . Critical Strikes 11 | . 9 2 Burn 11 | . 9 2 Melee Attacks . | . . . Impact . | . . . Slashing . | . . . Piercing . | . . . Sneak Attacks . | . . . Combat Hostiles . | . . . Follow-up Attacks . | . . . Damage Inflicted 1651 | 32 1360 259 Guns 1651 | 32 1360 259 Cannons . | . . . Explosions . | . . . Melee . | . . . Ramming . | . . . Kinetic 199 | 22 110 67 Thermal 1452 | 10 1250 192 Explosive . | . . . Electromagnetic . | . . . Impact . | . . . Slashing . | . . . Piercing . | . . . Highest Corruption . | . . . Average Corruption . | . . . Corruption Purged . | . . . Corruption Blocked . | . . . Overload Shots . | . . . Overflow Damage . | . . . Projectiles . | . . . Explosions . | . . . Melee . | . . . Knockbacks . | . . . Impact . | . . . Kinetic . | . . . Secondary . | . . . Self-Inflicted Damage . | . . . Shots . | . . . Rammed 1 | . 1 . Targets Rammed 1 | . 1 . Kicked . | . . . Crushed . | . . . Highest Temperature 273 | . 273 121 Average Temperature 75 | . 80 42 Received Heat Transfer 414 | . 360 54 Effects 2 | . 2 . Interference 2 | . 2 . Siege Activations . | . . . Martial Activations . | . . . Shielding Activations . | . . . Robots Disrupted . | . . . Combat Hostiles . | . . . Robots Corrupted . | . . . Combat Hostiles . | . . . Parts Fried . | . . . Impact Corruptions . | . . . Robots Melted 1 | . 1 . Combat Hostiles 1 | . 1 . Parts Melted 14 | . 13 1 Heat Transferred 4502 | 25 3848 629 Parts Sabotaged . | . . . Parts Stolen . | . . . Parts Stripped . | . . . Power Chain Reactions . | . . . Alert | -11 -10 -10 ------- Run | Yrd Mat Min Maximum Alert Level . | . . . Low Security (%) 100 | 100 100 100 Level 1 . | . . . Level 2 . | . . . Level 3 . | . . . Level 4 . | . . . Level 5 . | . . . High Security . | . . . Max Security . | . . . Peak Influence 175 | 5 175 101 Initial 61 | . . 61 Average 45 | . 61 14 Influence Increases 675 | 10 610 55 Destroy 0b10 Robot/C 420 | . 380 40 Destroy 0b10 Robot/NC 55 | 10 40 5 Destroy Leader 100 | . 90 10 Successful Hack 21 | . 21 . Select Force Hacks 60 | . 60 . Destroy Structure 4 | . 4 . Partial Spotted 15 | . 15 . Influence Decreases 675 | 10 453 212 Entered New Map 96 | . . 96 Time Decay 549 | 10 433 106 Lost Part 30 | . 20 10 Squads Dispatched 5 | . 5 . Investigation 2 | . 2 . Extermination . | . . . Reinforcement 3 | . 3 . Assault . | . . . Garrison . | . . . Intercept . | . . . Searches Triggered . | . . . Construction Impeded . | . . . Haulers Reinforced . | . . . Active Scanning Responses . | . . . Cargo Convoy Interrupts . | . . . Stealth | -11 -10 -10 --------- Run | Yrd Mat Min Distress Signals 2 | . 2 . Communications Jammed . | . . . Distress Signals . | . . . Times Spotted 32 | . 29 3 Peak Tracking Total 3 | . 3 1 Tactical Retreats . | . . . Traps | -11 -10 -10 ------- Run | Yrd Mat Min Traps Triggered 4 | . 4 . Indirectly . | . . . Trap Hack Attempts . | . . . Triggered . | . . . Disarmed . | . . . Reprogrammed . | . . . Reused . | . . . Traps Extracted . | . . . Installed . | . . . Triggered . | . . . Machines | -11 -10 -10 ---------- Run | Yrd Mat Min Machines Disabled . | . . . Max in Single Turn . | . . . Machines Repaired . | . . . Machines Dismantled . | . . . Machines Sabotaged . | . . . Overloaded Fab Kills . | . . . Hacking | -11 -10 -10 --------- Run | Yrd Mat Min Machines Accessed 7 | . 7 . Terminals 5 | . 5 . Fabricators . | . . . Repair Stations . | . . . Recycling Units 2 | . 2 . Scanalyzers . | . . . Garrison Access . | . . . Total Hacks 21 | . 21 . Successful 11 | . 11 . Failed 10 | . 10 . Catastrophic 1 | . 1 . Database Lockouts . | . . . Manual 19 | . 19 . Terminals 19 | . 19 . Fabricators . | . . . Repair Stations . | . . . Recycling Units 2 | . 2 . Scanalyzers . | . . . Garrison Access . | . . . Terminal Hacks 4 | . 4 . Robot Analysis 2 | . 2 . Terminal Index 1 | . 1 . Zone Layout 1 | . 1 . Fabricator Hacks . | . . . Repair Station Hacks . | . . . Recycling Unit Hacks . | . . . Scanalyzer . | . . . Garrison Access Hacks . | . . . Unauthorized Hacks 7 | . 7 . Terminals 5 | . 5 . Botnet 5 | . 5 . Fabricators . | . . . Repair Stations . | . . . Recycling Units 2 | . 2 . Tunnel 2 | . 2 . Scanalyzers . | . . . Garrison Access . | . . . Data Cores Recovered . | . . . Used . | . . . Hacking Detections 5 | . 5 . Full Trace Events 2 | . 2 . Feedback Events . | . . . Feedback Blocked . | . . . Robot Schematics Acquired . | . . . Robots Built . | . . . Authchips . | . . . Time . | . . . Total Robot Build Rating . | . . . Part Schematics Acquired . | . . . Parts Built . | . . . Authchips . | . . . Time . | . . . Total Part Build Rating . | . . . Part Studies Acquired . | . . . Parts Repaired . | . . . Time . | . . . Parts Recycled . | . . . Recycled Matter . | . . . Retrieved Matter . | . . . Retrieved Components . | . . . Parts Scanalyzed . | . . . Part Schematics Acquired . | . . . Parts Damaged . | . . . Bothacking | -11 -10 -10 ------------ Run | Yrd Mat Min Used RIF Installer . | . . . Robots Hacked . | . . . Non-combat . | . . . Combat . | . . . Robot Hacks Applied . | . . . Relay Couplers Released . | . . . Fabnet Peak Effective % . | . . . Robots Rewired . | . . . Allies Hacked . | . . . Hacks Repelled . | . . . Allies | -11 -10 -10 -------- Run | Yrd Mat Min Total Allies . | . . . Largest Group . | . . . Highest-Rated Group . | . . . Highest-Rated Ally . | . . . Total Orders . | . . . Ally Attacks . | . . . Total Damage . | . . . Kills . | . . . Allies Corrupted . | . . . Allies Melted . | . . . Intel | -11 -10 -10 ------- Run | Yrd Mat Min Active Infowar (turns) 696 | 38 591 67 Seismic 696 | 38 591 67 Robot Analysis Total 2 | . 2 . Derelict Logs Recovered . | . . . Drone Launches . | . . . Drone Recoveries . | . . . Exploration | -11 -10 -10 ------------- Run | Yrd Mat Min Turns Passed 2805 | 147 1891 767 Spaces Moved 945 | 81 632 232 Core 6 | 6 . . Treads 939 | 75 632 232 Legs . | . . . Wheels . | . . . Hover . | . . . Flight . | . . . Fastest Speed 50 | 50 160 240 Average Speed 224 | 151 227 240 Slowest Speed 320 | 160 320 240 Overloaded Moves . | . . . Propulsion Burnouts . | . . . Robots Hopped . | . . . Potential Cave-ins . | . . . Cave-ins Triggered . | . . . Exploration Rate (%) 46 | 5 94 39 Regions Visited 2 Branch Regions 1 Pre-discovered Areas 2 | . 2 . Known Exits Taken . | . . . Unknown Exits Taken 2 | 1 1 . Scrap Searched . | . . . Spaces Dug . | . . . Terrain Destroyed . | . . . Melee . | . . . Projectile . | . . . AOE . | . . . Terrain Rammed . | . . . Walls Destroyed . | . . . Machines Disabled . | . . . Actions | -11 -10 -10 --------- Run | Yrd Mat Min Total 1458 | 98 944 416 Wait 357 | 4 194 159 Move 943 | 80 631 232 Hop . | . . . Pick Up 21 | 5 15 1 Fast Attach 19 | 7 11 1 Attach 8 | . 2 6 Detach . | . . . Swap 15 | . 12 3 Drop 4 | . 4 . Fire 90 | 2 74 14 Melee . | . . . Ram . | . . . Kick . | . . . Crush 1 | . 1 . Escape Stasis . | . . . Rewire . | . . . Trap . | . . . Miscellaneous . | . . . Route ------- -11/Scrapyard -10/Materials (discovered 3 exits: [*Mat x2] / [*Min]) -10/Mines (discovered 1 exit: [*Mat]) History --------- Turn | Location | Event 4 | -11/Scrapyard | Discovered new exit (range 13) 148 | -11/Scrapyard | Entered Materials 307 | -10/Materials | Build established: Mutant 568 | -10/Materials | Discovered new exit (range 9) 923 | -10/Materials | Discovered new exit (range 15) 1425 | -10/Materials | Discovered new exit (range 8) 1888 | -10/Materials | Build established: Scavenger-Mutant 1907 | -10/Materials | Core integrity fell below 50% 2039 | -10/Materials | Entered Mines 2129 | -10/Mines | Discovered new exit (range 6) 2579 | -10/Mines | Core integrity fell below 20% 2590 | -10/Mines | Destroyed YI-UF0 2615 | -10/Mines | Lost 6 parts (2p1n3w) 2806 | -10/Mines | Destroyed by G-47 Trooper with Particle Gun Last Messages --------------- 02630_ K-01 Serf collects debris. 02631_ U-05 Engineer builds a Wall. 02634_ The unstable cave ceiling collapses. 02635_ K-01 Serf collects debris. 02635_ U-05 Engineer lays Concrete. 02636_ U-05 Engineer builds a Wall. 02637_ The unstable cave ceiling collapses. 02637_ U-05 Engineer builds a Wall. 02639_ K-01 Serf collects debris. 02645_ U-05 Engineer lays Concrete. 02645_ K-01 Serf collects debris. 02649_ K-01 Serf destroyed. 02652_ Acquired 3 matter. 02655_ R-06 Scavenger collects Wheel. 02657_ Acquired Lgt. Ion Engine. 02658_ Acquired 2 matter. 02660_ The unstable cave ceiling collapses. 02665_ Acquired 1 matter. 02699_ Acquired 7 matter. 02725_ Acquired Structural Scanner. Map ----- +----------------------------------------------------+ | | | | | | | | | | | | | | | | | | | | | | | | | #????????????????######??????????????????????????? | | # #??????????????# # #####??????????????????????? | | # ################# ## #??????????????????????? | | ??#% % #??????????????????????? | | #?# ############### ##??????????????????????? | | # #?????????????# ##???????????????????????? | | #%#?????????????# ##????????????????????????? | | ## #?????????????# #?????????????????????????? | | # #?????????????# #?????????????????????????? | | # #?????????????# # #?????????????????????????? | | # #???###???????# ## #??????? #???????????????? | | # #### ##??????# ######### # ## #???????????? | | #??????# #???????????? | | " #??????# g @ % #???????????? | | " ##??????# ##############???????????????? | | """ ##???????# ?????????????????????????????? | | ## """ ##??????? ????????????????????????????? | | ?# ##???????% ##?????????????????????????????? | | ?## ##??????## #??????????????????????????????? | | ### ###??????# ???????????????????????????????? | | # # # #???## #????????????????????????????????? | | # # # ##?? # #????????????????????????????????? | | # # ## # ??????????????????????????????????? | | ## # ## #???????????????????????????????????? | | # #???????????????????????????????????? | | # % # # #???????????????????????????????????? | | # # # #???????????????????????????????????? | | # ### % ##???????????????????????????????????? | | ### #### #????????????????????????????????????? | | ???# #####?????????????????????????????????? | | ???# # # ##????????????????????????????????? | | ???# # #????????????????????????????????? | | #### #????????????????????????????????? | | # ##???????????????????????????????? | | #### # # < ##??????????????????????????????? | | ???# # #??????????????????????????????? | | #??# # # #??????????????????????????????? | | ##?# # # # ###????????????????????????????? | +----------------------------------------------------+ Best States ------------- Heat Dissipation 39 Energy Generation 10 Energy Capacity 250 Matter Stores 300 Matter Capacity 300 Sight Range 16 Terrain Scan Density 10 Evasion (%) 40 Recoil Reduction 2 Item Schematics ----------------- None Robot Schematics ------------------ None Fabricated ------------ Nothing Repaired ---------- Nothing Studied --------- None Alien Tech Used ----------------- None Achievements -------------- None Challenges ------------ None Game ------ Seed RapidPlatingRedistributor Manual? 0 Play Time 00:13:42 Cumulative 134.4 hours Start 2026.01.24 @ 19:37:05 End 2026.01.24 @ 19:48:01 Sessions 1 Manual Loads 0 Difficulty Rogue Special Mode None Game No. 170 Rogue 165 Adventurer 5 Explorer 0 Win Type - Total 3 Types 2/0/0/1/0/0/0/0/0/0 Lore% 43 Gallery% 59 Achievement% 43 Wizard Run 0 Options --------- Layout 0 ASCII 0 Keyboard 1 Movement Vi Keybinds 0 Fullscreen 1 Font 24/Smallcaps Map View 76x50 Zoom Use 0% Tactical HUD 1 Map Filters NONE Filters NONE Steam 1 RUN: aef2104f-76a6-474d-b936-2cfa0d7a6225